fUST/lending_fUST_20250729
["ID","MTS","AMOUNT","RATE_DAILY","PERIOD"]
[375866738,1753765851311,-828.51,0.0002,2]
[375866740,1753765851322,-460.0,0.0002,2]
[375866742,1753765851332,-460.0,0.0002,2]
[375866744,1753765851341,-460.0,0.0002,2]
[375866746,1753765851351,-460.0,0.0002,2]
[375866748,1753765851360,-460.0,0.0002,2]
[375866750,1753765851370,-460.0,0.0002,2]
[375866752,1753765851379,-460.0,0.0002,2]
[375866754,1753765851389,-460.0,0.0002,2]
[375866756,1753765851398,-460.0,0.0002,2]
[375866758,1753765851408,-460.0,0.0002,2]
[375866760,1753765851417,-893.82,0.0002,2]
[375866762,1753765851426,-460.0,0.0002,2]
[375866764,1753765851436,-460.0,0.0002,2]
[375866766,1753765851446,-460.0,0.0002,2]
[375866768,1753765851456,-460.0,0.0002,2]
[375866770,1753765851465,-460.0,0.0002,2]
[375866772,1753765851476,-836.14,0.0002,2]
[375866774,1753765851486,-1107.56,0.0002,2]
[375866776,1753765851496,-460.0,0.0002,2]
[375866778,1753765851505,-460.0,0.0002,2]
[375866780,1753765851515,-460.0,0.0002,2]
[375866782,1753765851524,-460.0,0.0002,2]
[375866784,1753765851534,-497.31696415,0.0002,2]
[375866786,1753765851544,-340.60848119,0.0002,2]
[375866788,1753765851553,-165.36597588,0.0002,2]
[375866790,1753765851562,-465.85004244,0.0002,2]
[375866792,1753765851572,-460.0,0.0002,2]
[375866794,1753765851582,-488.77,0.0002,2]
[375866795,1753765851591,-1034.27,0.0002,2]
[375866797,1753765851601,-355.94987526,0.00020104,2]
[375866799,1753765851610,-1500.0,0.00020168,2]
[375866801,1753765851620,-265.0,0.00020211,2]
[375866803,1753765851629,-284.59094366,0.00020273,2]
[375866805,1753765851639,-460.0,0.00020273,2]
[375866807,1753765851648,-460.0,0.00020273,2]
[375866809,1753765851658,-460.0,0.00020273,2]
[375866811,1753765851667,-460.0,0.00020273,2]
[375866813,1753765851677,-460.0,0.00020273,2]
[375866815,1753765851687,-460.0,0.00020273,2]
[375866817,1753765851696,-460.0,0.00020273,2]
[375866819,1753765851706,-460.0,0.00020273,2]
[375866821,1753765851716,-460.0,0.00020273,2]
[375866823,1753765851726,-460.0,0.00020273,2]
[375866825,1753765851735,-460.0,0.00020273,2]
[375866827,1753765851745,-460.0,0.00020273,2]
[375866829,1753765851754,-460.0,0.00020273,2]
[375866831,1753765851763,-460.0,0.00020273,2]
[375866833,1753765851773,-460.0,0.00020273,2]
[375866835,1753765851783,-460.0,0.00020273,2]
[375866837,1753765851792,-460.0,0.00020273,2]
[375866839,1753765851802,-1728.1,0.00020273,2]
[375866841,1753765851811,-460.0,0.00020273,2]
[375866843,1753765851821,-460.0,0.00020273,2]
[375866845,1753765851830,-460.0,0.00020273,2]
[375866847,1753765851840,-460.0,0.00020273,2]
[375866848,1753765851850,-460.0,0.00020273,2]
[375866850,1753765851860,-564.83,0.00020273,2]
[375866852,1753765851869,-460.0,0.00020273,2]
[375866854,1753765851879,-1249.97,0.00020273,2]
[375866856,1753765851888,-460.0,0.00020273,2]
[375866858,1753765851898,-460.0,0.00020273,2]
[375866860,1753765851907,-522.22,0.00020273,2]
[375866862,1753765851916,-460.0,0.00020273,2]
[375866864,1753765851926,-460.0,0.00020273,2]
[375866867,1753765851947,-460.0,0.00020273,2]
[375866869,1753765851958,-460.0,0.00020273,2]
[375866871,1753765851969,-460.0,0.00020273,2]
[375866873,1753765851979,-460.0,0.00020273,2]
[375866876,1753765851990,-460.0,0.00020273,2]
[375866878,1753765851999,-472.31,0.00020273,2]
[375866880,1753765852010,-460.0,0.00020273,2]
[375866882,1753765852020,-785.62,0.00020273,2]
[375866884,1753765852031,-1092.49,0.00020273,2]
[375866886,1753765852041,-1555.88,0.00020273,2]
[375866888,1753765852051,-460.0,0.00020273,2]
[375866890,1753765852061,-460.0,0.00020273,2]
[375866892,1753765852071,-535.47,0.00020273,2]
[375866894,1753765852081,-928.11,0.00020273,2]
[375866896,1753765852092,-460.0,0.00020273,2]
[375866898,1753765852103,-460.0,0.00020273,2]
[375866900,1753765852113,-460.0,0.00020273,2]
[375866902,1753765852122,-460.0,0.00020273,2]
[375866904,1753765852132,-2722.94,0.00020273,2]
[375866906,1753765852143,-1227.64,0.00020273,2]
[375866908,1753765852154,-460.0,0.00020273,2]
[375866910,1753765852166,-255.57486679,0.00020273,2]
[375866912,1753765852176,-460.0,0.00020273,2]
[375866914,1753765852186,-460.0,0.00020273,2]
[375866916,1753765852197,-1069.34,0.00020273,2]
[375866918,1753765852207,-828.51,0.00020273,2]
[375866920,1753765852217,-460.0,0.00020273,2]
[375866921,1753765852228,-460.0,0.00020273,2]
[375866923,1753765852238,-460.0,0.00020273,2]
[375866925,1753765852248,-460.0,0.00020273,2]
[375866927,1753765852258,-460.0,0.00020273,2]
[375866929,1753765852268,-460.0,0.00020273,2]
[375866931,1753765852277,-460.0,0.00020273,2]
[375866932,1753765852287,-460.0,0.00020273,2]
[375866935,1753765852298,-460.0,0.00020273,2]
[375866936,1753765852307,-460.0,0.00020273,2]
[375866938,1753765852318,-893.82,0.00020273,2]
[375866940,1753765852327,-576.3,0.00020273,2]
[375866942,1753765852337,-460.0,0.00020273,2]
[375866944,1753765852348,-181.46179835,0.00020273,2]
[375866946,1753765852358,-460.0,0.00020273,2]
[375866948,1753765852368,-460.0,0.00020273,2]
[375866950,1753765852378,-836.14,0.00020273,2]
[375866952,1753765852389,-1107.56,0.00020273,2]
[375866954,1753765852399,-460.0,0.00020273,2]
[375866956,1753765852410,-460.0,0.00020273,2]
[375866958,1753765852420,-460.0,0.00020273,2]
[375866960,1753765852430,-460.0,0.00020273,2]
[375866962,1753765852440,-460.0,0.00020273,2]
[375866964,1753765852450,-488.77,0.00020273,2]
[375866966,1753765852460,-1034.27,0.00020273,2]
[375866968,1753765852470,-214.91980558,0.00020326,2]
[375866970,1753765852480,-841.06558547,0.00020326,2]
[375866972,1753765852490,-12637.12721421,0.00020326,2]
[375866974,1753765852500,-454.69923987,0.00020326,2]
[375866976,1753765852510,-168.0,0.00020329,2]
[375866978,1753765852521,-549.9,0.00020438,3]
[375866980,1753765852531,-1369.63664696,0.00020544,2]
[375866982,1753765852541,-1369.63664696,0.00020544,2]
[375866984,1753765852552,-500.0,0.00020544,2]
[375866986,1753765852566,-1369.63664696,0.00020544,2]
[375866988,1753765852576,-332.55402496,0.00020544,2]
[375866990,1753765852586,-1369.63664696,0.00020544,2]
[375866992,1753765852596,-1369.63664696,0.00020544,2]
[375866994,1753765852607,-1369.63664696,0.00020544,2]
[375866997,1753765852617,-1369.63664696,0.00020544,2]
[375866998,1753765852628,-1369.63664696,0.00020544,2]
[375867001,1753765852639,-1369.63664696,0.00020544,2]
[375867003,1753765852649,-1369.63664696,0.00020544,2]
[375867005,1753765852662,-1369.63664696,0.00020544,2]
[375867007,1753765852674,-1369.63664696,0.00020544,2]
[375867009,1753765852684,-1369.63664696,0.00020544,2]
[375867011,1753765852694,-1369.63664696,0.00020544,2]
[375867013,1753765852703,-1369.63664696,0.00020544,2]
[375867015,1753765852714,-1369.63664696,0.00020544,2]
[375867017,1753765852725,-1369.63664696,0.00020544,2]
[375867019,1753765852736,-460.0,0.00020547,2]
[375867021,1753765852746,-460.0,0.00020547,2]
[375867023,1753765852756,-460.0,0.00020547,2]
[375867025,1753765852766,-520.53322625,0.00020547,2]
[375867027,1753765852776,-460.0,0.00020547,2]
[375867029,1753765852786,-460.0,0.00020547,2]
[375867031,1753765852796,-460.0,0.00020547,2]
[375867033,1753765852807,-460.0,0.00020547,2]
[375867035,1753765852817,-460.0,0.00020547,2]
[375867037,1753765852827,-460.0,0.00020547,2]
[375867039,1753765852837,-460.0,0.00020547,2]
[375867041,1753765852847,-460.0,0.00020547,2]
[375867043,1753765852857,-460.0,0.00020547,2]
[375867045,1753765852866,-460.0,0.00020547,2]
[375867047,1753765852876,-460.0,0.00020547,2]
[375867049,1753765852887,-460.0,0.00020547,2]
[375867051,1753765852897,-460.0,0.00020547,2]
[375867053,1753765852908,-1728.1,0.00020547,2]
[375867055,1753765852917,-460.0,0.00020547,2]
[375867057,1753765852927,-460.0,0.00020547,2]
[375867059,1753765852937,-460.0,0.00020547,2]
[375867061,1753765852947,-460.0,0.00020547,2]
[375867063,1753765852959,-460.0,0.00020547,2]
[375867065,1753765852968,-564.83,0.00020547,2]
[375867067,1753765852979,-460.0,0.00020547,2]
[375867069,1753765852988,-1249.97,0.00020547,2]
[375867071,1753765852998,-460.0,0.00020547,2]
[375867073,1753765853008,-460.0,0.00020547,2]
[375867075,1753765853018,-522.22,0.00020547,2]
[375867077,1753765853027,-460.0,0.00020547,2]
[375867079,1753765853037,-460.0,0.00020547,2]
[375867081,1753765853048,-227.06970622,0.00020547,2]
[375867083,1753765853058,-460.0,0.00020547,2]
[375867085,1753765853068,-460.0,0.00020547,2]
[375867087,1753765853078,-460.0,0.00020547,2]
[375867089,1753765853088,-472.31,0.00020547,2]
[375867091,1753765853098,-460.0,0.00020547,2]
[375867093,1753765853108,-785.62,0.00020547,2]
[375867095,1753765853119,-1092.49,0.00020547,2]
[375867097,1753765853129,-1555.88,0.00020547,2]
[375867099,1753765853139,-460.0,0.00020547,2]
[375867101,1753765853150,-460.0,0.00020547,2]
[375867103,1753765853161,-535.47,0.00020547,2]
[375867105,1753765853171,-928.11,0.00020547,2]
[375867107,1753765853183,-460.0,0.00020547,2]
[375867109,1753765853193,-460.0,0.00020547,2]
[375867111,1753765853203,-460.0,0.00020547,2]
[375867113,1753765853213,-460.0,0.00020547,2]
[375867115,1753765853223,-2722.94,0.00020547,2]
[375867117,1753765853234,-1227.64,0.00020547,2]
[375867119,1753765853244,-460.0,0.00020547,2]
[375867121,1753765853254,-460.0,0.00020547,2]
[375867123,1753765853264,-460.0,0.00020547,2]
[375867125,1753765853275,-1069.34,0.00020547,2]
[375867127,1753765853285,-828.51,0.00020547,2]
[375867129,1753765853295,-460.0,0.00020547,2]
[375867131,1753765853305,-460.0,0.00020547,2]
[375867133,1753765853315,-193.78884136,0.00020547,2]
[375867135,1753765853325,-460.0,0.00020547,2]
[375867137,1753765853335,-460.0,0.00020547,2]
[375867139,1753765853345,-460.0,0.00020547,2]
[375867141,1753765853354,-460.0,0.00020547,2]
[375867143,1753765853364,-460.0,0.00020547,2]
[375867145,1753765853374,-460.0,0.00020547,2]
[375867147,1753765853384,-460.0,0.00020547,2]
[375867149,1753765853394,-893.82,0.00020547,2]
[375867151,1753765853405,-460.0,0.00020547,2]
[375867153,1753765853414,-464.2594474,0.00020547,2]
[375867155,1753765853424,-460.0,0.00020547,2]
[375867157,1753765853434,-836.14,0.00020547,2]
[375867159,1753765853444,-1107.56,0.00020547,2]
[375867160,1753765853454,-460.0,0.00020547,2]
[375867162,1753765853464,-460.0,0.00020547,2]
[375867164,1753765853473,-460.0,0.00020547,2]
[375867166,1753765853483,-460.0,0.00020547,2]
[375867168,1753765853494,-460.0,0.00020547,2]
[375867170,1753765853504,-488.77,0.00020547,2]
[375867172,1753765853513,-1034.27,0.00020547,2]
[375867174,1753765853523,-500.0,0.00020548,2]
[375867176,1753765853532,-500.0,0.00020573,2]
[375867178,1753765853542,-168.0,0.00020665,2]
[375867180,1753765853552,-1000.0,0.00020716,2]
[375867182,1753765853562,-343.0,0.00020784,2]
[375867191,1753765853572,-604.0,0.00020787,2]
[375867193,1753765853655,-276.78,0.00020821,2]
[375867195,1753765853665,-460.0,0.00020821,2]
[375867197,1753765853675,-460.0,0.00020821,2]
[375867199,1753765853684,-574.8,0.00020821,2]
[375867200,1753765853693,-460.0,0.00020821,2]
[375867201,1753765853702,-460.0,0.00020821,2]
[375867202,1753765853713,-460.0,0.00020821,2]
[375867203,1753765853722,-460.0,0.00020821,2]
[375867204,1753765853732,-460.0,0.00020821,2]
[375867205,1753765853742,-460.0,0.00020821,2]
[375867206,1753765853756,-460.0,0.00020821,2]
[375867207,1753765853766,-460.0,0.00020821,2]
[375867208,1753765853775,-460.0,0.00020821,2]
[375867209,1753765853784,-460.0,0.00020821,2]
[375867210,1753765853794,-460.0,0.00020821,2]
[375867211,1753765853803,-1728.1,0.00020821,2]
[375867212,1753765853814,-460.0,0.00020821,2]
[375867213,1753765853824,-460.0,0.00020821,2]
[375867214,1753765853833,-460.0,0.00020821,2]
[375867215,1753765853843,-460.0,0.00020821,2]
[375867216,1753765853852,-401.44873198,0.00020821,2]
[375867217,1753765853862,-564.83,0.00020821,2]
[375867218,1753765853872,-460.0,0.00020821,2]
[375867219,1753765853882,-1249.97,0.00020821,2]
[375867220,1753765853892,-460.0,0.00020821,2]
[375867221,1753765853901,-460.0,0.00020821,2]
[375867222,1753765853911,-522.22,0.00020821,2]
[375867223,1753765853920,-460.0,0.00020821,2]
[375867225,1753765853930,-460.0,0.00020821,2]
[375867227,1753765853939,-460.0,0.00020821,2]
[375867229,1753765853950,-460.0,0.00020821,2]
[375867231,1753765853959,-460.0,0.00020821,2]
[375867233,1753765853969,-472.31,0.00020821,2]
[375867235,1753765853978,-460.0,0.00020821,2]
[375867237,1753765853987,-785.62,0.00020821,2]
[375867239,1753765853997,-1092.49,0.00020821,2]
[375867241,1753765854007,-1555.88,0.00020821,2]
[375867243,1753765854016,-460.0,0.00020821,2]
[375867244,1753765854025,-460.0,0.00020821,2]
[375867246,1753765854034,-535.47,0.00020821,2]
[375867248,1753765854043,-928.11,0.00020821,2]
[375867250,1753765854053,-460.0,0.00020821,2]
[375867252,1753765854063,-306.2801089,0.00020821,2]
[375867254,1753765854073,-460.0,0.00020821,2]
[375867256,1753765854082,-460.0,0.00020821,2]
[375867258,1753765854091,-2722.94,0.00020821,2]
[375867260,1753765854101,-1227.64,0.00020821,2]
[375867262,1753765854110,-460.0,0.00020821,2]
[375867264,1753765854119,-460.0,0.00020821,2]
[375867266,1753765854128,-460.0,0.00020821,2]
[375867268,1753765854137,-1069.34,0.00020821,2]
[375867270,1753765854146,-828.51,0.00020821,2]
[375867272,1753765854157,-460.0,0.00020821,2]
[375867274,1753765854168,-460.0,0.00020821,2]
[375867276,1753765854177,-460.0,0.00020821,2]
[375867278,1753765854186,-460.0,0.00020821,2]
[375867280,1753765854196,-460.0,0.00020821,2]
[375867281,1753765854206,-460.0,0.00020821,2]
[375867283,1753765854215,-460.0,0.00020821,2]
[375867285,1753765854224,-460.0,0.00020821,2]
[375867287,1753765854235,-460.0,0.00020821,2]
[375867289,1753765854245,-893.82,0.00020821,2]
[375867291,1753765854254,-460.0,0.00020821,2]
[375867293,1753765854263,-185.2335945,0.00020821,2]
[375867295,1753765854273,-836.14,0.00020821,2]
[375867297,1753765854283,-1107.56,0.00020821,2]
[375867299,1753765854291,-460.0,0.00020821,2]
[375867301,1753765854302,-460.0,0.00020821,2]
[375867303,1753765854311,-460.0,0.00020821,2]
[375867305,1753765854321,-460.0,0.00020821,2]
[375867307,1753765854330,-460.0,0.00020821,2]
[375867309,1753765854340,-488.77,0.00020821,2]
[375867311,1753765854349,-168.0,0.00021088,2]
[375867313,1753765854358,-460.0,0.00021095,2]
[375867315,1753765854367,-539.52,0.00021095,2]
[375867317,1753765854376,-460.0,0.00021095,2]
[375867319,1753765854385,-460.0,0.00021095,2]
[375867321,1753765854394,-460.0,0.00021095,2]
[375867323,1753765854405,-460.0,0.00021095,2]
[375867325,1753765854414,-460.0,0.00021095,2]
[375867327,1753765854423,-460.0,0.00021095,2]
[375867329,1753765854433,-460.0,0.00021095,2]
[375867331,1753765854443,-460.0,0.00021095,2]
[375867332,1753765854453,-250.54429874,0.00021095,2]
[375867334,1753765854463,-460.0,0.00021095,2]
[375867337,1753765854474,-460.0,0.00021095,2]
[375867339,1753765854485,-1728.1,0.00021095,2]
[375867341,1753765854495,-460.0,0.00021095,2]
[375867342,1753765854505,-460.0,0.00021095,2]
[375867344,1753765854514,-460.0,0.00021095,2]
[375867346,1753765854524,-460.0,0.00021095,2]
[375867348,1753765854534,-564.83,0.00021095,2]
[375867350,1753765854544,-460.0,0.00021095,2]
[375867352,1753765854553,-1249.97,0.00021095,2]
[375867354,1753765854563,-460.0,0.00021095,2]
[375867356,1753765854572,-460.0,0.00021095,2]
[375867358,1753765854582,-522.22,0.00021095,2]
[375867360,1753765854592,-460.0,0.00021095,2]
[375867362,1753765854601,-460.0,0.00021095,2]
[375867364,1753765854610,-460.0,0.00021095,2]
[375867366,1753765854621,-460.0,0.00021095,2]
[375867368,1753765854630,-460.0,0.00021095,2]
[375867370,1753765854640,-472.31,0.00021095,2]
[375867372,1753765854650,-460.0,0.00021095,2]
[375867374,1753765854659,-785.62,0.00021095,2]
[375867376,1753765854669,-1092.49,0.00021095,2]
[375867378,1753765854678,-1555.88,0.00021095,2]
[375867380,1753765854687,-460.0,0.00021095,2]
[375867382,1753765854697,-460.0,0.00021095,2]
[375867384,1753765854706,-535.47,0.00021095,2]
[375867386,1753765854716,-928.11,0.00021095,2]
[375867388,1753765854726,-460.0,0.00021095,2]
[375867390,1753765854735,-460.0,0.00021095,2]
[375867392,1753765854746,-460.0,0.00021095,2]
[375867394,1753765854755,-2722.94,0.00021095,2]
[375867396,1753765854765,-1227.64,0.00021095,2]
[375867398,1753765854774,-460.0,0.00021095,2]
[375867399,1753765854785,-460.0,0.00021095,2]
[375867401,1753765854795,-460.0,0.00021095,2]
[375867403,1753765854805,-1069.34,0.00021095,2]
[375867405,1753765854814,-828.51,0.00021095,2]
[375867407,1753765854824,-460.0,0.00021095,2]
[375867409,1753765854834,-460.0,0.00021095,2]
[375867411,1753765854843,-460.0,0.00021095,2]
[375867413,1753765854853,-460.0,0.00021095,2]
[375867415,1753765854862,-460.0,0.00021095,2]
[375867417,1753765854871,-460.0,0.00021095,2]
[375867419,1753765854881,-460.0,0.00021095,2]
[375867421,1753765854890,-460.0,0.00021095,2]
[375867423,1753765854899,-460.0,0.00021095,2]
[375867425,1753765854909,-893.82,0.00021095,2]
[375867427,1753765854918,-460.0,0.00021095,2]
[375867429,1753765854928,-836.14,0.00021095,2]
[375867431,1753765854938,-1107.56,0.00021095,2]
[375867433,1753765854948,-460.0,0.00021095,2]
[375867435,1753765854957,-460.0,0.00021095,2]
[375867437,1753765854967,-460.0,0.00021095,2]
[375867439,1753765854978,-460.0,0.00021095,2]
[375867441,1753765854987,-460.0,0.00021095,2]
[375867443,1753765854997,-488.77,0.00021095,2]
[375867445,1753765855007,-454.76214944,0.00021121,2]
[375867447,1753765855017,-355.94987526,0.00021136,2]
[375867449,1753765855027,-973.577,0.00021321,2]
[375867451,1753765855037,-200.0,0.00021358,15]
[375867453,1753765855046,-200.0,0.00021358,15]
[375867455,1753765855056,-200.0,0.00021358,15]
[375867457,1753765855066,-200.0,0.00021358,15]
[375867459,1753765855076,-320.0,0.00021358,15]
[375867461,1753765855085,-460.0,0.00021369,2]
[375867463,1753765855096,-195.58,0.00021369,2]
[375867465,1753765855107,-460.0,0.00021369,2]
[375867467,1753765855116,-460.0,0.00021369,2]
[375867469,1753765855126,-460.0,0.00021369,2]
[375867471,1753765855135,-460.0,0.00021369,2]
[375867473,1753765855146,-460.0,0.00021369,2]
[375867475,1753765855157,-460.0,0.00021369,2]
[375867477,1753765855167,-460.0,0.00021369,2]
[375867479,1753765855177,-460.0,0.00021369,2]
[375867481,1753765855187,-460.0,0.00021369,2]
[375867483,1753765855197,-1728.1,0.00021369,2]
[375867485,1753765855207,-460.0,0.00021369,2]
[375867487,1753765855217,-460.0,0.00021369,2]
[375867488,1753765855227,-460.0,0.00021369,2]
[375867489,1753765855238,-460.0,0.00021369,2]
[375867491,1753765855248,-564.83,0.00021369,2]
[375867493,1753765855257,-460.0,0.00021369,2]
[375867495,1753765855267,-1249.97,0.00021369,2]
[375867497,1753765855277,-268.02119063,0.00021369,2]
[375867499,1753765855287,-460.0,0.00021369,2]
[375867501,1753765855296,-522.22,0.00021369,2]
[375867503,1753765855306,-460.0,0.00021369,2]
[375867506,1753765855316,-460.0,0.00021369,2]
[375867508,1753765855326,-460.0,0.00021369,2]
[375867510,1753765855336,-460.0,0.00021369,2]
[375867512,1753765855346,-460.0,0.00021369,2]
[375867514,1753765855356,-472.31,0.00021369,2]
[375867516,1753765855366,-460.0,0.00021369,2]
[375867518,1753765855375,-785.62,0.00021369,2]
[375867520,1753765855385,-1092.49,0.00021369,2]
[375867522,1753765855395,-1555.88,0.00021369,2]
[375867524,1753765855405,-460.0,0.00021369,2]
[375867526,1753765855415,-460.0,0.00021369,2]
[375867528,1753765855424,-535.47,0.00021369,2]
[375867530,1753765855434,-928.11,0.00021369,2]
[375867531,1753765855444,-460.0,0.00021369,2]
[375867533,1753765855453,-316.89694518,0.00021369,2]
[375867535,1753765855463,-460.0,0.00021369,2]
[375867537,1753765855473,-2722.94,0.00021369,2]
[375867540,1753765855485,-1227.64,0.00021369,2]
[375867542,1753765855495,-460.0,0.00021369,2]
[375867544,1753765855506,-460.0,0.00021369,2]
[375867546,1753765855515,-460.0,0.00021369,2]
[375867548,1753765855526,-1069.34,0.00021369,2]
[375867550,1753765855536,-828.51,0.00021369,2]
[375867551,1753765855546,-460.0,0.00021369,2]
[375867553,1753765855556,-460.0,0.00021369,2]
[375867556,1753765855566,-460.0,0.00021369,2]
[375867557,1753765855575,-460.0,0.00021369,2]
[375867559,1753765855585,-460.0,0.00021369,2]
[375867561,1753765855595,-460.0,0.00021369,2]
[375867563,1753765855605,-460.0,0.00021369,2]
[375867565,1753765855615,-460.0,0.00021369,2]
[375867567,1753765855625,-460.0,0.00021369,2]
[375867569,1753765855635,-893.82,0.00021369,2]
[375867571,1753765855645,-460.0,0.00021369,2]
[375867573,1753765855655,-836.14,0.00021369,2]
[375867575,1753765855665,-460.0,0.00021369,2]
[375867577,1753765855675,-1107.56,0.00021369,2]
[375867579,1753765855684,-460.0,0.00021369,2]
[375867581,1753765855694,-460.0,0.00021369,2]
[375867583,1753765855703,-460.0,0.00021369,2]
[375867585,1753765855713,-460.0,0.00021369,2]
[375867587,1753765855723,-488.77,0.00021369,2]
[375867589,1753765855732,-168.0,0.0002146,2]
[375867591,1753765855742,-151.0,0.000215,2]
[375867594,1753765855752,-151.0,0.000215,2]
[375867596,1753765855762,-98357.77,0.000215,2]
[375867598,1753765855772,-151.857537,0.000215,2]
[375867600,1753765855782,-205.728,0.000215,2]
[375867602,1753765855792,-151.0,0.000215,2]
[375867604,1753765855802,-151.0,0.000215,2]
[375867605,1753765855812,-153.861058,0.000215,7]
[375867607,1753765855822,-151.0,0.000215,2]
[375867610,1753765855832,-151.0,0.000215,2]
[375867612,1753765855843,-151.0,0.000215,2]
[375867614,1753765855852,-151.0,0.000215,2]
[375867616,1753765855862,-1625.42307402,0.000215,2]
[375867618,1753765855872,-473.3,0.00021549,4]
[375867620,1753765855881,-581.44,0.00021624,2]
[375867622,1753765855891,-168.0,0.00021635,2]
[375867624,1753765855903,-460.0,0.00021643,2]
[375867625,1753765855913,-460.0,0.00021643,2]
[375867626,1753765855923,-460.0,0.00021643,2]
[375867627,1753765855932,-460.0,0.00021643,2]
[375867628,1753765855942,-460.0,0.00021643,2]
[375867629,1753765855953,-460.0,0.00021643,2]
[375867630,1753765855963,-460.0,0.00021643,2]
[375867631,1753765855973,-602.69816725,0.00021643,2]
[375867632,1753765855983,-460.0,0.00021643,2]
[375867633,1753765855993,-460.0,0.00021643,2]
[375867634,1753765856003,-1728.1,0.00021643,2]
[375867635,1753765856013,-460.0,0.00021643,2]
[375867636,1753765856025,-460.0,0.00021643,2]
[375867637,1753765856035,-460.0,0.00021643,2]
[375867638,1753765856045,-564.83,0.00021643,2]
[375867639,1753765856057,-460.0,0.00021643,2]
[375867640,1753765856067,-1249.97,0.00021643,2]
[375867641,1753765856077,-460.0,0.00021643,2]
[375867642,1753765856087,-522.22,0.00021643,2]
[375867643,1753765856097,-460.0,0.00021643,2]
[375867644,1753765856107,-460.0,0.00021643,2]
[375867645,1753765856118,-460.0,0.00021643,2]
[375867646,1753765856131,-460.0,0.00021643,2]
[375867647,1753765856140,-460.0,0.00021643,2]
[375867648,1753765856152,-472.31,0.00021643,2]
[375867649,1753765856162,-460.0,0.00021643,2]
[375867650,1753765856172,-785.62,0.00021643,2]
[375867651,1753765856182,-1092.49,0.00021643,2]
[375867652,1753765856192,-1555.88,0.00021643,2]
[375867653,1753765856202,-460.0,0.00021643,2]
[375867654,1753765856212,-460.0,0.00021643,2]
[375867655,1753765856221,-535.47,0.00021643,2]
[375867656,1753765856233,-928.11,0.00021643,2]
[375867657,1753765856243,-460.0,0.00021643,2]
[375867658,1753765856253,-460.0,0.00021643,2]
[375867659,1753765856263,-1227.64,0.00021643,2]
[375867660,1753765856273,-2722.94,0.00021643,2]
[375867661,1753765856283,-460.0,0.00021643,2]
[375867662,1753765856292,-460.0,0.00021643,2]
[375867663,1753765856303,-460.0,0.00021643,2]
[375867664,1753765856314,-1069.34,0.00021643,2]
[375867665,1753765856324,-828.51,0.00021643,2]
[375867666,1753765856334,-460.0,0.00021643,2]
[375867667,1753765856344,-460.0,0.00021643,2]
[375867668,1753765856353,-460.0,0.00021643,2]